lending/lending_fUSD_20260306
["ID","MTS","AMOUNT","RATE_DAILY","PERIOD"]
[407779045,1772795101191,300.0,0.00015639,2]
[407779046,1772795101218,300.0,0.00015639,2]
[407779047,1772795101244,698.7951175,0.00015639,2]
[407779048,1772795101833,-501.2048825,0.00015639,2]
[407779049,1772795101855,-300.0,0.00015639,2]
[407779050,1772795144473,-338.45,0.00016056,2]
[407779051,1772795144494,-4661.5500965,0.000162,5]
[407779052,1772795148532,-338.45,0.000162,5]
[407779053,1772795180839,150.0,0.000161,2]
[407779054,1772795224952,4511.5500965,0.00012038,2]
[407779057,1772795346129,-383.0,0.00012037,2]
[407779058,1772795346151,-18424.26475694,0.00012038,2]
[407779059,1772795367088,-977.54430106,0.00012038,2]
[407779060,1772795367109,-314.90202338,0.00013987,2]
[407779061,1772795367130,-514.0,0.00014,2]
[407779062,1772795367150,-1099.56410239,0.00014086,2]
[407779063,1772795367171,-23913.3591545,0.00014087,2]
[407779064,1772795367193,-220.9437384,0.000161,2]
[407779065,1772795367213,-200.72181509,0.000161,2]
[407779066,1772795367233,-441.0,0.00016136,2]
[407779067,1772795367256,-3802.00889175,0.00016137,2]
[407779068,1772795367289,-8831.46387622,0.00016137,2]
[407779069,1772795424263,-314.90202336,0.00015244,2]
[407779077,1772795431462,-277.0,0.00015244,2]
[407779078,1772795431472,-3240.0,0.00015814,2]
[407779079,1772795431481,-1200.0,0.00016136,2]
[407779080,1772795431491,-11279.88638653,0.00016137,2]
[407779081,1772795431501,-151.0,0.00016137,2]
[407779082,1772795431511,-500.0,0.0001624,2]
[407779083,1772795431521,-200.0,0.0001634,2]
[407779084,1772795431530,-512.61,0.00016426,2]
[407779085,1772795431540,-314.90202336,0.000165,2]
[407779086,1772795431550,-338.45,0.00016528,2]
[407779087,1772795431559,-11517.28,0.00016561,2]
[407779088,1772795431569,-362.32925749,0.000166,2]
[407779089,1772795431579,-164.57,0.0001679,2]
[407779090,1772795431588,-5621.12574049,0.000169,3]
[407779091,1772795431597,-1700.6690705,0.000169,2]
[407779092,1772795431607,-823.50944647,0.000169,2]
[407779093,1772795431616,-500.0,0.00016973,2]
[407779094,1772795431626,-23953.63956096,0.00016999,2]
[407779095,1772795431636,-28530.11771773,0.00017,2]
[407779096,1772795431648,-2113.94723268,0.00017,2]
[407779097,1772795431660,-1797.63413149,0.00017,2]
[407779099,1772795431688,-4091.94786815,0.00017,2]
[407779101,1772795431700,-3701.37001177,0.00017,2]
[407779102,1772795431711,-987.95536,0.00017,2]
[407779104,1772795431723,-869.66570832,0.00017,2]
[407779106,1772795431734,-846.46166189,0.00017,2]
[407779107,1772795431746,-343.22158602,0.00017,2]
[407779126,1772795438416,-13846.37780608,0.00017,2]
[407779127,1772795438443,-688.99814758,0.00017,2]
[407779128,1772795438455,-1579.99200005,0.00017,2]
[407779129,1772795438466,-1859.16761427,0.00017,2]
[407779130,1772795438483,-129602.16538398,0.00017,2]
[407779131,1772795438492,-300.0,0.00017,2]
[407779132,1772795438501,-338.45,0.00017001,2]
[407779133,1772795438511,-164.57,0.0001706,2]
[407779134,1772795438520,-512.61,0.00017172,2]
[407779135,1772795438531,-1700.66907041,0.00017233,2]
[407779136,1772795438540,-164.57,0.0001733,2]
[407779137,1772795438551,-578.20924308,0.00017356,2]
[407779138,1772795438561,-338.45,0.00017473,2]
[407779139,1772795438571,-2275.61,0.0001751,7]
[407779140,1772795438581,-3492.58,0.0001751,7]
[407779141,1772795438591,-589.03508066,0.00017521,2]
[407779142,1772795438602,-500.0,0.00017534,2]
[407779143,1772795438611,-1700.66907041,0.00017567,2]
[407779144,1772795438622,-164.57,0.000176,2]
[407779145,1772795438633,-1680.0,0.00017728,2]
[407779146,1772795438643,-164.57,0.0001787,2]
[407779147,1772795438654,-492.56619301,0.00017872,2]
[407779148,1772795438663,-1700.66907041,0.000179,2]
[407779149,1772795438673,-512.61,0.00017919,2]
[407779150,1772795438693,-166.66,0.00017932,2]
[407779151,1772795438704,-500.0,0.00017944,2]
[407779152,1772795438716,-500.0,0.00017944,2]
[407779153,1772795438727,-500.0,0.00017944,2]
[407779154,1772795438738,-500.0,0.00017944,2]
[407779155,1772795438749,-500.0,0.00017944,2]
[407779156,1772795438759,-500.0,0.00017944,2]
[407779157,1772795438769,-500.0,0.00017944,2]
[407779158,1772795438781,-500.0,0.00017944,2]
[407779159,1772795438791,-500.0,0.00017944,2]
[407779160,1772795438802,-349.64714405,0.00017944,2]
[407779161,1772795438812,-500.0,0.00017944,2]
[407779162,1772795438822,-500.0,0.00017944,2]
[407779163,1772795438832,-500.0,0.00017944,2]
[407779164,1772795438842,-500.0,0.00017944,2]
[407779165,1772795438851,-500.0,0.00017944,2]
[407779166,1772795438862,-500.0,0.00017944,2]
[407779167,1772795438871,-500.0,0.00017944,2]
[407779168,1772795438881,-500.0,0.00017944,2]
[407779169,1772795438891,-500.0,0.00017944,2]
[407779170,1772795438901,-500.0,0.00017944,2]
[407779171,1772795438910,-500.0,0.00017944,2]
[407779172,1772795438920,-500.0,0.00017944,2]
[407779173,1772795438929,-500.0,0.00017944,2]
[407779174,1772795438939,-500.0,0.00017944,2]
[407779175,1772795438948,-500.0,0.00017944,2]
[407779176,1772795438958,-500.0,0.00017944,2]
[407779177,1772795438967,-500.0,0.00017944,2]
[407779178,1772795438976,-8763.94,0.00017945,2]
[407779179,1772795438987,-183.62,0.00017945,3]
[407779180,1772795438997,-500.0,0.00017945,2]
[407779181,1772795439007,-500.0,0.00017945,2]
[407779182,1772795439016,-338.45,0.00017945,2]
[407779183,1772795439025,-250.0,0.00017974,2]
[407779184,1772795439035,-600.76717863,0.00017974,2]
[407779185,1772795439044,-20000.0,0.0001799,2]
[407779186,1772795439053,-266.0,0.00017995,2]
[407779187,1772795439063,-1706.71,0.00018035,7]
[407779188,1772795439072,-2619.43,0.00018035,7]
[407779189,1772795439081,-1000.0,0.0001808,2]
[407779190,1772795439090,-164.57,0.0001814,2]
[407779191,1772795439099,-23913.3591545,0.00018186,2]
[407779192,1772795439108,-1700.66907041,0.00018233,2]
[407779193,1772795439118,-2024.66719584,0.0001835,2]
[407779194,1772795439127,-6748.2338,0.00018351,2]
[407779195,1772795439136,-183.15307811,0.00018364,2]
[407779196,1772795439145,-2803.0,0.000184,2]
[407779197,1772795439154,-2803.0,0.000184,2]
[407779198,1772795439163,-835.0,0.000184,2]
[407779199,1772795439173,-164.57,0.0001841,2]
[407779200,1772795439182,-183.15307811,0.00018416,2]
[407779201,1772795439191,-500.0,0.0001845,2]
[407779202,1772795439201,-297.55416561,0.0001845,2]
[407779203,1772795439211,-303.05645335,0.0001845,2]
[407779204,1772795439220,-500.0,0.0001845,2]
[407779205,1772795439229,-500.0,0.0001845,2]
[407779206,1772795439238,-425.79527212,0.0001845,2]
[407779207,1772795439247,-500.0,0.0001845,2]
[407779208,1772795439256,-373.44899705,0.0001845,2]
[407779209,1772795439265,-378067.39,0.00018451,2]
[407779210,1772795439274,-183.15307811,0.00018464,2]
[407779211,1772795439286,-500.0,0.00018473,2]
[407779212,1772795439295,-500.0,0.00018473,2]
[407779213,1772795439304,-489.71509886,0.00018473,2]
[407779214,1772795439313,-500.0,0.00018473,2]
[407779215,1772795439323,-500.0,0.00018473,2]
[407779216,1772795439332,-500.0,0.00018473,2]
[407779217,1772795439341,-500.0,0.00018473,2]
[407779218,1772795439352,-500.0,0.00018473,2]
[407779219,1772795439361,-4870.193,0.00018487,2]
[407779220,1772795439370,-335.672,0.00018487,2]
[407779221,1772795439380,-2024.66719581,0.00018522,2]
[407779222,1772795439390,-9999.99,0.00018533,2]
[407779223,1772795439399,-150.99,0.00018533,2]
[407779224,1772795439408,-1137.81,0.00018561,7]
[407779225,1772795439417,-1746.29,0.00018561,7]
[407779226,1772795439426,-1700.66907041,0.00018567,2]
[407779227,1772795439435,-693.3919763,0.00018606,2]
[407779228,1772795439445,-174.61919141,0.00018606,2]
[407779229,1772795439454,-719.04747942,0.00018661,2]
[407779230,1772795439463,-512.61,0.00018666,2]
[407779231,1772795439472,-166.66,0.00018672,2]
[407779232,1772795439481,-164.57,0.0001868,2]
[407779233,1772795439490,-153.25316425,0.00018681,2]
[407779234,1772795439499,-2024.66719581,0.00018694,2]
[407779235,1772795439509,-745.65223616,0.00018716,2]
[407779236,1772795439518,-2803.0,0.0001872,2]
[407779237,1772795439527,-160.0,0.0001872,2]
[407779238,1772795439536,-847.0,0.0001872,2]
[407779239,1772795439546,-2803.0,0.0001872,2]
[407779240,1772795439555,-160.0,0.0001872,2]
[407779241,1772795439564,-5827.685962,0.00018768,7]
[407779242,1772795439573,-773.2413689,0.00018771,2]
[407779243,1772795439583,-801.85129955,0.00018826,2]
[407779244,1772795439591,-2024.66719581,0.00018867,2]
[407779245,1772795439601,-183.15307808,0.00018876,2]
[407779246,1772795439610,-831.51979763,0.00018881,2]
[407779247,1772795439619,-5000.0,0.000189,2]
[407779248,1772795439628,-1700.66907041,0.000189,2]
[407779249,1772795439637,-183.15307808,0.00018911,2]
[407779251,1772795439646,-168.0,0.00018932,2]
[407779252,1772795439655,-862.28603014,0.00018936,2]
[407779253,1772795439664,-183.15307808,0.00018943,2]
[407779254,1772795439674,-164.57,0.0001895,2]
[407779255,1772795439683,-894.19061326,0.00018991,2]
[407779256,1772795439692,-350.0,0.00019,2]
[407779257,1772795439701,-1000.0,0.00019021,2]
[407779258,1772795439711,-1000.0,0.00019021,2]
[407779259,1772795439720,-1000.0,0.00019021,2]
[407779260,1772795439730,-1000.0,0.00019021,2]
[407779261,1772795439739,-1000.0,0.00019021,2]
[407779262,1772795439747,-1000.0,0.00019021,2]
[407779263,1772795439757,-1000.0,0.00019021,2]
[407779264,1772795439766,-160.0,0.00019023,2]
[407779265,1772795439775,-172.74325605,0.00019023,2]
[407779266,1772795439784,-2024.66719581,0.00019039,2]
[407779267,1772795439793,-2803.0,0.0001904,2]
[407779268,1772795439802,-927.27566595,0.00019046,2]
[407779269,1772795439811,-168.0,0.00019063,2]
[407779270,1772795439820,-876.76,0.00019086,2]
[407779271,1772795439829,-961.58486559,0.00019101,2]
[407779272,1772795439838,-181.08010149,0.00019154,2]
[407779273,1772795439847,-997.16350561,0.00019156,2]
[407779274,1772795439856,-500.0,0.00019165,2]
[407779275,1772795439866,-500.0,0.00019165,2]
[407779276,1772795439874,-150.0,0.00019165,2]
[407779277,1772795439883,-150.0,0.00019165,2]
[407779278,1772795439892,-150.0,0.00019165,2]
[407779279,1772795439900,-500.0,0.00019165,2]
[407779280,1772795439909,-150.0,0.00019165,2]
[407779281,1772795439919,-500.0,0.00019165,2]
[407779282,1772795439927,-150.0,0.00019165,2]
[407779283,1772795439936,-150.0,0.00019165,2]
[407779284,1772795439945,-807.0,0.00019165,2]
[407779285,1772795439954,-2000.0,0.000192,2]
[407779286,1772795439963,-2024.66719581,0.00019211,2]
[407779287,1772795439972,-3073.16,0.00019211,2]
[407779288,1772795439981,-3073.16,0.00019211,2]
[407779289,1772795439990,-3073.16,0.00019211,2]
[407779290,1772795439999,-3073.16,0.00019211,2]
[407779291,1772795440008,-3772.8,0.00019211,2]
[407779292,1772795440017,-164.59,0.0001922,2]
[407779293,1772795440026,-1700.66907041,0.00019233,2]
[407779294,1772795440035,-1000.0,0.00019294,2]
[407779295,1772795440044,-350.0,0.00019339,2]
[407779296,1772795440053,-160.0,0.0001936,2]
[407779297,1772795440062,-2803.0,0.0001936,2]
[407779298,1772795440071,-618.79,0.0001936,2]
[407779299,1772795440080,-2024.66719581,0.00019383,2]
[407779300,1772795440093,-183.15307808,0.00019388,2]
[407779301,1772795440102,-286.97214433,0.000194,2]
[407779302,1772795440111,-5000.0,0.000194,2]
[407779303,1772795440120,-905.1223948,0.000194,2]
[407779304,1772795440128,-434.71734478,0.000194,2]
[407779305,1772795440137,-589.73259081,0.000194,2]
[407779306,1772795440146,-331.96163642,0.000194,2]
[407779307,1772795440155,-150.10507288,0.000194,2]
[407779308,1772795440164,-183.15307808,0.00019405,2]
[407779309,1772795440173,-3502.0,0.00019411,2]
[407779310,1772795440183,-619.0,0.00019411,2]
[407779311,1772795440192,-1341.0,0.00019411,2]
[407779312,1772795440201,-1042.0,0.00019411,2]
[407779313,1772795440211,-150.31,0.00019411,2]
[407779314,1772795440220,-1279.0,0.00019411,2]
[407779315,1772795440229,-166.66,0.00019412,2]
[407779316,1772795440238,-512.61,0.00019412,2]
[407779317,1772795440247,-183.15307808,0.00019421,2]
[407779318,1772795440256,-500.0,0.00019439,2]
[407779319,1772795440265,-500.0,0.00019439,2]
[407779320,1772795440274,-150.0,0.00019439,2]
[407779321,1772795440290,-150.0,0.00019439,2]
[407779323,1772795440634,-500.0,0.00019439,2]
[407779324,1772795440644,-500.0,0.00019439,2]
[407779325,1772795440654,-150.0,0.00019439,2]
[407779326,1772795440663,-807.0,0.00019439,2]
[407779327,1772795440672,-500.0,0.00019439,2]
[407779328,1772795440681,-500.0,0.00019439,2]
[407779329,1772795440690,-500.0,0.00019439,2]
[407779330,1772795440699,-150.0,0.00019439,2]
[407779331,1772795440707,-500.0,0.00019439,2]
[407779332,1772795440716,-214.68428333,0.00019439,2]
[407779333,1772795440725,-500.0,0.00019439,2]
[407779334,1772795440734,-500.0,0.00019439,2]
[407779335,1772795440743,-160.97642414,0.00019439,2]
[407779336,1772795440752,-150.0,0.00019439,2]
[407779337,1772795440761,-500.0,0.00019439,2]
[407779338,1772795440770,-150.0,0.00019439,2]
[407779339,1772795440779,-500.0,0.00019439,2]
[407779340,1772795440788,-1281.0,0.00019439,2]
[407779341,1772795440797,-500.0,0.00019439,2]
[407779342,1772795440807,-150.0,0.00019439,2]
[407779343,1772795440817,-500.0,0.00019439,2]
[407779344,1772795440826,-566.0,0.00019439,2]
[407779345,1772795440835,-500.0,0.00019439,2]
[407779346,1772795440845,-500.0,0.00019439,2]
[407779347,1772795440854,-500.0,0.00019439,2]
[407779348,1772795440863,-500.0,0.00019439,2]
[407779349,1772795440872,-482.0,0.00019439,2]
[407779350,1772795440881,-1122.0,0.00019439,2]
[407779351,1772795440890,-500.0,0.00019439,2]
[407779352,1772795440899,-500.0,0.00019439,2]
[407779353,1772795440908,-500.0,0.00019439,2]
[407779354,1772795440917,-1035.0,0.00019439,2]
[407779355,1772795440927,-500.0,0.00019439,2]
[407779356,1772795440937,-150.0,0.00019439,2]
[407779357,1772795440947,-613.0,0.00019439,2]
[407779358,1772795440958,-1280.0,0.00019439,2]
[407779359,1772795440968,-168.0,0.0001947,2]
[407779360,1772795440978,-184.94185274,0.00019473,2]
[407779361,1772795440987,-500.0,0.00019473,2]
[407779362,1772795440998,-500.0,0.00019473,2]
[407779363,1772795441007,-500.0,0.00019473,2]
[407779364,1772795441016,-500.0,0.00019473,2]
[407779365,1772795441025,-150.0,0.00019473,2]
[407779366,1772795441034,-2351.0,0.00019477,2]
[407779367,1772795441044,-419.827864,0.0001949,2]
[407779368,1772795441053,-151.0,0.00019497,2]
[407779369,1772795441062,-151.0,0.00019497,2]
[407779370,1772795441072,-151.0,0.00019497,2]
[407779371,1772795441082,-500.0,0.00019499,2]
[407779372,1772795441093,-462.18232633,0.00019499,2]
[407779373,1772795441105,-3000.0,0.00019499,2]
[407779374,1772795441116,-3000.0,0.00019499,7]
[407779375,1772795441126,-1597.0,0.000195,2]
[407779376,1772795441136,-2500000.0,0.000195,2]
[407779377,1772795441146,-12077.12279968,0.000195,2]
[407779378,1772795441157,-514.0,0.000195,6]
[407779379,1772795441167,-589.73259078,0.000195,2]
[407779380,1772795441177,-922.0,0.00019506,2]
[407779381,1772795441187,-1219.676,0.00019506,2]
[407779382,1772795441197,-5990.0,0.00019514,2]
[407779383,1772795441207,-2459.0,0.00019514,2]
[407779384,1772795441216,-2024.66719581,0.00019556,2]
[407779385,1772795441225,-168.0,0.00019557,2]
[407779386,1772795441235,-1700.66907041,0.00019567,2]
[407779387,1772795441246,-1000.0,0.00019568,2]
[407779388,1772795441255,-1500.0,0.00019568,2]
[407779389,1772795441264,-1500.0,0.00019568,2]
[407779390,1772795441277,-1442.99956491,0.00019568,2]
[407779391,1772795441287,-500.0,0.00019568,2]
[407779392,1772795441296,-1500.0,0.00019568,2]
[407779393,1772795441305,-1500.0,0.00019568,2]
[407779394,1772795441315,-151.0,0.00019588,2]
[407779395,1772795441325,-151.0,0.00019588,2]
[407779396,1772795441335,-1000.0,0.00019588,2]
[407779397,1772795441346,-500.0,0.00019588,2]
[407779398,1772795441355,-500.0,0.00019588,2]
[407779399,1772795441365,-500.0,0.00019588,2]
[407779400,1772795441374,-500.0,0.00019588,2]
[407779401,1772795441383,-500.0,0.00019588,2]
[407779402,1772795441392,-500.0,0.00019588,2]
[407779403,1772795441401,-500.0,0.00019588,2]
[407779404,1772795441411,-151.0,0.00019588,2]
[407779405,1772795441421,-1000.0,0.00019588,2]
[407779406,1772795441431,-500.0,0.00019588,2]
[407779407,1772795441440,-151.0,0.00019588,2]
[407779408,1772795441449,-1000.0,0.00019588,2]
[407779409,1772795441459,-500.0,0.00019588,2]
[407779410,1772795441468,-151.0,0.00019588,2]
[407779411,1772795441477,-1000.0,0.00019588,2]
[407779412,1772795441486,-500.0,0.00019588,2]
[407779413,1772795441495,-1000.0,0.00019588,2]
[407779414,1772795441505,-151.0,0.00019588,2]
[407779415,1772795441514,-500.0,0.00019588,2]
[407779416,1772795441523,-151.0,0.00019588,2]
[407779417,1772795441533,-1000.0,0.00019588,2]
[407779418,1772795441542,-151.0,0.00019588,2]
[407779419,1772795441553,-1000.0,0.00019588,2]
[407779420,1772795441563,-151.0,0.00019588,2]
[407779421,1772795441573,-1000.0,0.00019588,2]
[407779422,1772795441583,-151.0,0.00019588,2]
[407779423,1772795441593,-1000.0,0.00019588,2]
[407779424,1772795441603,-151.0,0.00019588,2]
[407779425,1772795441611,-1000.0,0.00019588,2]
[407779426,1772795441621,-1000.0,0.00019588,2]
[407779427,1772795441631,-1000.0,0.00019588,2]
[407779428,1772795441640,-1022.36933281,0.000196,2]
[407779429,1772795441650,-1057.07789767,0.000196,2]
[407779430,1772795441660,-1088.1853408,0.000196,2]
[407779431,1772795441670,-1014.95324095,0.000196,2]
[407779432,1772795441679,-1077.8482529,0.000196,2]
[407779433,1772795441687,-1004.22745879,0.000196,2]
[407779434,1772795441697,-1098.18662883,0.000196,2]
[407779435,1772795441706,-1563.56824454,0.000196,2]
[407779436,1772795441716,-1295.70763128,0.000196,2]
[407779437,1772795441725,-589.73259078,0.000196,2]
[407779438,1772795441734,-168.0,0.00019634,2]
[407779439,1772795441744,-986.0,0.00019645,5]
[407779440,1772795441753,-571.0,0.00019645,5]
[407779441,1772795441763,-286.97214433,0.0001965,2]
[407779442,1772795441772,-905.12239478,0.0001965,2]
[407779443,1772795441781,-434.71734477,0.0001965,2]
[407779444,1772795441790,-331.96163641,0.0001965,2]
[407779445,1772795441799,-150.10507288,0.0001965,2]
[407779446,1772795441808,-160.0,0.0001968,2]
[407779447,1772795441817,-847.0,0.0001968,2]
[407779448,1772795441827,-160.0,0.0001968,2]
[407779449,1772795441836,-10000.0,0.000197,2]
[407779450,1772795441845,-589.73259078,0.000197,2]
[407779451,1772795441854,-187.78006525,0.00019702,2]
[407779452,1772795441863,-841.93,0.00019711,2]
[407779453,1772795441872,-500.0,0.00019713,2]
[407779454,1772795441881,-603.94824168,0.00019713,2]
[407779455,1772795441890,-200.0,0.00019713,2]
[407779456,1772795441899,-500.0,0.00019713,2]
[407779457,1772795441909,-500.0,0.00019713,2]
[407779458,1772795441918,-807.0,0.00019713,2]
[407779459,1772795441927,-500.0,0.00019713,2]
[407779460,1772795441937,-500.0,0.00019713,2]
[407779461,1772795441946,-500.0,0.00019713,2]
[407779462,1772795441955,-150.0,0.00019713,2]
[407779463,1772795441965,-500.0,0.00019713,2]
[407779464,1772795441974,-500.0,0.00019713,2]
[407779465,1772795441983,-500.0,0.00019713,2]
[407779466,1772795441992,-150.0,0.00019713,2]
[407779467,1772795442001,-500.0,0.00019713,2]
[407779468,1772795442010,-150.0,0.00019713,2]
[407779469,1772795442019,-500.0,0.00019713,2]
[407779470,1772795442028,-1281.0,0.00019713,2]
[407779471,1772795442037,-500.0,0.00019713,2]
[407779472,1772795442046,-150.0,0.00019713,2]
[407779473,1772795442055,-500.0,0.00019713,2]
[407779474,1772795442064,-566.0,0.00019713,2]
[407779475,1772795442074,-500.0,0.00019713,2]
[407779476,1772795442083,-500.0,0.00019713,2]
[407779477,1772795442092,-500.0,0.00019713,2]
[407779478,1772795442101,-500.0,0.00019713,2]
[407779479,1772795442111,-482.0,0.00019713,2]
[407779480,1772795442120,-1122.0,0.00019713,2]
[407779481,1772795442129,-500.0,0.00019713,2]
[407779482,1772795442138,-500.0,0.00019713,2]
[407779483,1772795442147,-500.0,0.00019713,2]
[407779484,1772795442156,-1035.0,0.00019713,2]
[407779485,1772795442166,-500.0,0.00019713,2]
[407779486,1772795442176,-613.0,0.00019713,2]
[407779487,1772795442185,-1280.0,0.00019713,2]
[407779488,1772795442195,-150.0,0.00019713,2]
[407779489,1772795442204,-153.25316425,0.00019719,2]
[407779490,1772795442214,-168.0,0.0001972,2]
[407779491,1772795442224,-265.24292304,0.00019726,2]
[407779492,1772795442234,-2024.66719581,0.00019728,2]
[407779493,1772795442244,-1000.0,0.00019777,2]
[407779494,1772795442254,-700.0,0.00019788,2]
[407779495,1772795442265,-168.0,0.00019788,2]
[407779496,1772795442274,-1000.0,0.00019791,2]
[407779497,1772795442288,-1515.0,0.000198,2]
[407779498,1772795442297,-1515.0,0.000198,2]
[407779499,1772795442306,-864.0,0.000198,2]
[407779500,1772795442316,-864.0,0.000198,2]
[407779501,1772795442327,-1515.0,0.000198,2]
[407779502,1772795442337,-1515.0,0.000198,2]
[407779503,1772795442347,-1515.0,0.000198,2]
[407779504,1772795442357,-1515.0,0.000198,2]
[407779505,1772795442367,-1515.0,0.000198,2]
[407779506,1772795442377,-1515.0,0.000198,2]
[407779507,1772795442386,-1515.0,0.000198,2]
[407779508,1772795442396,-1515.0,0.000198,2]
[407779509,1772795442405,-1515.0,0.000198,2]
[407779510,1772795442414,-1515.0,0.000198,2]
[407779511,1772795442424,-1515.0,0.000198,2]
[407779512,1772795442434,-1515.0,0.000198,2]
[407779513,1772795442443,-1515.0,0.000198,2]
[407779514,1772795442452,-1515.0,0.000198,2]
[407779515,1772795442461,-1515.0,0.000198,2]
[407779516,1772795442470,-1515.0,0.000198,2]
[407779518,1772795442478,-1515.0,0.000198,2]
[407779519,1772795442488,-1515.0,0.000198,2]
[407779520,1772795442497,-1515.0,0.000198,2]
[407779521,1772795442506,-1515.0,0.000198,2]
[407779522,1772795442516,-1515.0,0.000198,2]
[407779524,1772795442525,-1515.0,0.000198,2]
[407779525,1772795442535,-1515.0,0.000198,2]
[407779526,1772795442546,-1515.0,0.000198,2]
[407779527,1772795442556,-1515.0,0.000198,2]
[407779530,1772795442566,-1515.0,0.000198,2]
[407779532,1772795442577,-1515.0,0.000198,2]
[407779534,1772795442587,-1515.0,0.000198,2]
[407779536,1772795442596,-1515.0,0.000198,2]
[407779538,1772795442607,-1515.0,0.000198,2]
[407779539,1772795442618,-1515.0,0.000198,2]
[407779540,1772795442628,-1515.0,0.000198,2]
[407779541,1772795442638,-1515.0,0.000198,2]
[407779542,1772795442648,-1515.0,0.000198,2]
[407779543,1772795442659,-589.73259078,0.000198,2]
[407779544,1772795442669,-1000.0,0.00019842,2]
[407779545,1772795442679,-419.827864,0.0001989,2]
[407779546,1772795442688,-5800.0,0.00019892,2]
[407779547,1772795442697,-5839.61708545,0.000199,2]
[407779548,1772795442707,-270.0,0.000199,2]
[407779549,1772795442718,-200.0,0.000199,2]
[407779550,1772795442727,-150.0,0.000199,2]
[407779551,1772795442737,-150.0,0.000199,2]
[407779552,1772795442746,-150.166,0.000199,2]
[407779553,1772795442755,-150.188,0.000199,2]
[407779554,1772795442765,-150.109,0.000199,2]
[407779555,1772795442775,-150.0,0.000199,2]
[407779556,1772795442787,-150.0,0.000199,2]
[407779557,1772795442796,-150.379,0.000199,2]
[407779558,1772795442805,-150.0,0.000199,2]
[407779559,1772795442814,-21113.967,0.000199,2]
[407779560,1772795442824,-32912.143,0.000199,2]
[407779561,1772795442833,-1000.0,0.000199,2]
[407779562,1772795442842,-183.15307808,0.000199,2]
[407779563,1772795442851,-2148.8308,0.000199,2]
[407779564,1772795442860,-25000.0,0.000199,3]
[407779565,1772795442869,-183.15307808,0.000199,2]
[407779566,1772795442878,-75054.42999901,0.000199,7]
[407779567,1772795442888,-183.15307808,0.000199,2]
[407779568,1772795442898,-5800.0,0.000199,2]
[407779569,1772795442907,-286.97214433,0.000199,2]
[407779570,1772795442917,-905.12239478,0.000199,2]
[407779571,1772795442926,-434.71734477,0.000199,2]
[407779572,1772795442935,-589.73259078,0.000199,2]
[407779573,1772795442945,-331.96163641,0.000199,2]
[407779574,1772795442955,-11842.22879035,0.0001995,15]
[407779575,1772795442964,-1044.42852228,0.00019969,2]
[407779576,1772795442974,-400.0,0.0001997,2]
[407779577,1772795442984,-400.0,0.0001997,2]
[407779578,1772795442995,-150.0,0.00019973,2]
[407779579,1772795443012,-119258.6679168,0.0001998,2]
[407779580,1772795443030,-500.0,0.00019987,2]
[407779581,1772795443044,-500.0,0.00019987,2]
[407779582,1772795443059,-807.0,0.00019987,2]
[407779583,1772795443073,-500.0,0.00019987,2]
[407779584,1772795443083,-179.22864957,0.00019987,2]
[407779585,1772795443093,-500.0,0.00019987,2]